[Event "Early-Titled-Tuesday-Blitz-October-24-2023"]
[Site "Chess.com"]
[Date "2023.10.24"]
[Round "10"]
[White "tusplingher"]
[Black "Adnan_Habib"]
[Result "1-0"]
[WhiteElo "2502"]
[BlackElo "2341"]
[TimeControl "180+1"]
[EndTime "9:49:24 PDT"]
[Termination "tusplingher won by checkmate"]

1. e4 {[%clk 0:03:00.9]} 1... c5 {[%clk 0:02:58.7]} 2. b3 {[%clk 0:03:00]} 2...
Nc6 {[%clk 0:02:57.9]} 3. Bb2 {[%clk 0:02:59.3]} 3... Nf6 {[%clk 0:02:58.5]} 4.
e5 {[%clk 0:02:57.6]} 4... Nd5 {[%clk 0:02:58.2]} 5. Bc4 {[%clk 0:02:58.2]} 5...
Nc7 {[%clk 0:02:56.3]} 6. Nf3 {[%clk 0:02:57]} 6... d5 {[%clk 0:02:52.6]} 7.
exd6 {[%clk 0:02:56.5]} 7... Qxd6 {[%clk 0:02:52.5]} 8. O-O {[%clk 0:02:55.9]}
8... Bf5 {[%clk 0:02:49.7]} 9. d4 {[%clk 0:02:52.7]} 9... Rd8 {[%clk 0:02:47.1]}
10. Nc3 {[%clk 0:02:41]} 10... Nxd4 {[%clk 0:02:34.5]} 11. Nxd4 {[%clk
0:02:38.9]} 11... cxd4 {[%clk 0:02:34.7]} 12. Nb5 {[%clk 0:02:38.6]} 12... Nxb5
{[%clk 0:02:33.8]} 13. Bxb5+ {[%clk 0:02:37.7]} 13... Bd7 {[%clk 0:02:34.4]} 14.
Bxd7+ {[%clk 0:02:37]} 14... Qxd7 {[%clk 0:02:34.3]} 15. Qf3 {[%clk 0:02:36.4]}
15... e6 {[%clk 0:02:33.7]} 16. Rad1 {[%clk 0:02:35.8]} 16... Bc5 {[%clk
0:02:32.9]} 17. Qh5 {[%clk 0:02:34.7]} 17... Bb6 {[%clk 0:02:24.6]} 18. Rfe1
{[%clk 0:02:28.4]} 18... O-O {[%clk 0:02:23.7]} 19. Rd3 {[%clk 0:02:28.5]} 19...
Qd5 {[%clk 0:02:22.3]} 20. Qh4 {[%clk 0:02:25.9]} 20... e5 {[%clk 0:02:16.6]}
21. Rg3 {[%clk 0:02:15.2]} 21... Rd6 {[%clk 0:02:09.1]} 22. Qg5 {[%clk
0:02:11.3]} 22... g6 {[%clk 0:02:01.1]} 23. Qxe5 {[%clk 0:02:04.5]} 23... Re6
{[%clk 0:01:58.1]} 24. Rg5 {[%clk 0:01:35.5]} 24... Rfe8 {[%clk 0:01:56.2]} 25.
f4 {[%clk 0:01:31.1]} 25... d3+ {[%clk 0:01:53.3]} 26. Kh1 {[%clk 0:01:30.8]}
26... d2 {[%clk 0:01:46.1]} 27. Qh8# {[%clk 0:01:30.1]} 1-0

[Event "Early-Titled-Tuesday-Blitz-October-24-2023"]
[Site "Chess.com"]
[Date "2023.10.24"]
[Round "10"]
[White "salomez"]
[Black "ferrufino64"]
[Result "1-0"]
[WhiteElo "2348"]
[BlackElo "2199"]
[TimeControl "180+1"]
[EndTime "9:49:29 PDT"]
[Termination "salomez won by resignation"]

1. e4 {[%clk 0:01:04]} 1... c5 {[%clk 0:02:47]} 2. Nf3 {[%clk 0:01:03.5]} 2...
d6 {[%clk 0:02:46.4]} 3. d4 {[%clk 0:01:03.2]} 3... cxd4 {[%clk 0:02:47.3]} 4.
Nxd4 {[%clk 0:01:03.9]} 4... Nf6 {[%clk 0:02:47.8]} 5. Nc3 {[%clk 0:01:04.7]}
5... g6 {[%clk 0:02:48.3]} 6. Be2 {[%clk 0:01:03.8]} 6... Bg7 {[%clk 0:02:48.7]}
7. O-O {[%clk 0:01:04.7]} 7... Nc6 {[%clk 0:02:49.2]} 8. Nb3 {[%clk 0:01:04.7]}
8... O-O {[%clk 0:02:49.5]} 9. Bg5 {[%clk 0:01:03]} 9... h6 {[%clk 0:02:48.8]}
10. Bh4 {[%clk 0:01:00.4]} 10... a6 {[%clk 0:02:45.1]} 11. f4 {[%clk 0:00:58.4]}
11... b5 {[%clk 0:02:42.1]} 12. Bf3 {[%clk 0:00:57.3]} 12... Bb7 {[%clk
0:02:42.4]} 13. Kh1 {[%clk 0:00:54.8]} 13... Rc8 {[%clk 0:02:41.1]} 14. Re1
{[%clk 0:00:53.8]} 14... Qc7 {[%clk 0:02:21.8]} 15. Nd5 {[%clk 0:00:52]} 15...
Rfd8 {[%clk 0:02:03.7]} 16. Nxc7 {[%clk 0:00:50.6]} 16... Rxc7 {[%clk
0:02:03.2]} 1-0

[Event "Early-Titled-Tuesday-Blitz-October-24-2023"]
[Site "Chess.com"]
[Date "2023.10.24"]
[Round "10"]
[White "Malev212"]
[Black "angryspacevoid"]
[Result "1-0"]
[WhiteElo "2642"]
[BlackElo "2515"]
[TimeControl "180+1"]
[EndTime "9:49:36 PDT"]
[Termination "Malev212 won by resignation"]

1. d4 {[%clk 0:03:00.9]} 1... d5 {[%clk 0:02:56]} 2. c4 {[%clk 0:03:00.5]} 2...
Nc6 {[%clk 0:02:55.7]} 3. Nf3 {[%clk 0:02:59.1]} 3... Bg4 {[%clk 0:02:54.7]} 4.
e3 {[%clk 0:02:59.4]} 4... e5 {[%clk 0:02:53.1]} 5. Qb3 {[%clk 0:02:59.5]} 5...
Bxf3 {[%clk 0:02:41]} 6. gxf3 {[%clk 0:03:00.4]} 6... exd4 {[%clk 0:02:41.2]} 7.
cxd5 {[%clk 0:03:00.1]} 7... Nb4 {[%clk 0:02:38.7]} 8. e4 {[%clk 0:02:48.3]}
8... a5 {[%clk 0:02:33.9]} 9. a3 {[%clk 0:02:40.7]} 9... a4 {[%clk 0:02:07.7]}
10. Qd1 {[%clk 0:02:39.1]} 10... c5 {[%clk 0:02:04.5]} 11. axb4 {[%clk
0:02:35.8]} 11... Qb6 {[%clk 0:02:00.7]} 12. Na3 {[%clk 0:02:03.5]} 12... cxb4
{[%clk 0:01:55.9]} 13. Nc4 {[%clk 0:02:01.1]} 13... Qc7 {[%clk 0:01:49.2]} 14.
Qxd4 {[%clk 0:01:41.4]} 14... Nf6 {[%clk 0:01:41.8]} 15. Be3 {[%clk 0:01:36.8]}
15... Nd7 {[%clk 0:01:37.1]} 16. d6 {[%clk 0:01:34]} 16... Qc6 {[%clk
0:01:35.1]} 17. Bh3 {[%clk 0:01:26.3]} 17... b5 {[%clk 0:01:27.2]} 18. Bxd7+
{[%clk 0:01:25]} 1-0

[Event "Early-Titled-Tuesday-Blitz-October-24-2023"]
[Site "Chess.com"]
[Date "2023.10.24"]
[Round "10"]
[White "whiteglovethief"]
[Black "PinaSoprano"]
[Result "1-0"]
[WhiteElo "2442"]
[BlackElo "2240"]
[TimeControl "180+1"]
[EndTime "9:49:36 PDT"]
[Termination "whiteglovethief won by resignation"]

1. d4 {[%clk 0:03:00.9]} 1... d5 {[%clk 0:02:59.1]} 2. c4 {[%clk 0:03:00.8]}
2... e6 {[%clk 0:02:59.7]} 3. Nf3 {[%clk 0:03:01]} 3... h6 {[%clk 0:02:59.5]} 4.
g3 {[%clk 0:03:01.2]} 4... Nf6 {[%clk 0:02:57.4]} 5. Bg2 {[%clk 0:03:01.7]} 5...
Nc6 {[%clk 0:02:57.2]} 6. O-O {[%clk 0:03:02]} 6... Bd6 {[%clk 0:02:57]} 7. Qc2
{[%clk 0:03:02.2]} 7... O-O {[%clk 0:02:56.7]} 8. Nbd2 {[%clk 0:03:02]} 8... Re8
{[%clk 0:02:47.7]} 9. e4 {[%clk 0:02:59.5]} 9... dxe4 {[%clk 0:02:46.2]} 10.
Nxe4 {[%clk 0:02:59.8]} 10... Nxe4 {[%clk 0:02:45.7]} 11. Qxe4 {[%clk 0:03:00]}
11... e5 {[%clk 0:02:42.5]} 12. dxe5 {[%clk 0:02:58.4]} 12... Nxe5 {[%clk
0:02:42.6]} 13. Rd1 {[%clk 0:02:52.4]} 13... Bg4 {[%clk 0:02:09.7]} 14. Qxb7
{[%clk 0:02:33.1]} 14... Qf6 {[%clk 0:02:03.4]} 15. Bf4 {[%clk 0:02:15.1]} 15...
Nxf3+ {[%clk 0:01:41.5]} 16. Bxf3 {[%clk 0:02:14.3]} 16... Bxf3 {[%clk
0:01:42.1]} 17. Qxf3 {[%clk 0:02:13.4]} 17... g5 {[%clk 0:01:42.5]} 18. Qg4
{[%clk 0:01:58.8]} 18... Re4 {[%clk 0:01:32.5]} 19. Bxg5 {[%clk 0:01:56.9]}
19... Qg6 {[%clk 0:01:32.5]} 20. Qf3 {[%clk 0:01:48.3]} 20... hxg5 {[%clk
0:01:31]} 21. Rac1 {[%clk 0:01:46.5]} 21... g4 {[%clk 0:01:27.8]} 22. Qg2 {[%clk
0:01:46.8]} 22... Re2 {[%clk 0:01:26.7]} 23. Qxa8+ {[%clk 0:01:45.1]} 23... Kh7
{[%clk 0:01:24.5]} 24. Qd5 {[%clk 0:01:42]} 1-0

[Event "Early-Titled-Tuesday-Blitz-October-24-2023"]
[Site "Chess.com"]
[Date "2023.10.24"]
[Round "10"]
[White "brm72"]
[Black "Alina_Gumerovna"]
[Result "1-0"]
[WhiteElo "2569"]
[BlackElo "2135"]
[TimeControl "180+1"]
[EndTime "9:49:37 PDT"]
[Termination "brm72 won by resignation"]

1. e4 {[%clk 0:03:00.9]} 1... e6 {[%clk 0:02:59.2]} 2. d4 {[%clk 0:03:00.7]}
2... d5 {[%clk 0:02:58.5]} 3. e5 {[%clk 0:03:01.2]} 3... c5 {[%clk 0:02:58.1]}
4. c3 {[%clk 0:03:01.1]} 4... Nc6 {[%clk 0:02:58.5]} 5. Nf3 {[%clk 0:03:01.4]}
5... Qb6 {[%clk 0:02:58.9]} 6. Bd3 {[%clk 0:03:01.7]} 6... cxd4 {[%clk
0:02:58.8]} 7. O-O {[%clk 0:03:01.1]} 7... Bd7 {[%clk 0:02:58.8]} 8. Re1 {[%clk
0:02:58.2]} 8... a5 {[%clk 0:02:55.3]} 9. Nbd2 {[%clk 0:02:55.2]} 9... a4 {[%clk
0:02:53.8]} 10. Rb1 {[%clk 0:02:53]} 10... dxc3 {[%clk 0:02:46.5]} 11. bxc3
{[%clk 0:02:52.3]} 11... Qc7 {[%clk 0:02:46.7]} 12. c4 {[%clk 0:02:51.8]} 12...
d4 {[%clk 0:02:42.9]} 13. Ne4 {[%clk 0:02:26.8]} 13... h6 {[%clk 0:02:40.6]} 14.
c5 {[%clk 0:02:17.5]} 14... Na5 {[%clk 0:02:07.3]} 15. Nd6+ {[%clk 0:02:13.9]}
15... Bxd6 {[%clk 0:02:07.5]} 16. cxd6 {[%clk 0:02:11.7]} 16... Qc5 {[%clk
0:01:59.2]} 17. Bb2 {[%clk 0:02:06.9]} 17... b5 {[%clk 0:01:57.6]} 18. Bxd4
{[%clk 0:02:06]} 18... Qd5 {[%clk 0:01:55.6]} 19. Be4 {[%clk 0:02:05.6]} 19...
Qxa2 {[%clk 0:01:55.7]} 20. Bxa8 {[%clk 0:02:05.3]} 20... Nc4 {[%clk 0:01:53.5]}
21. Re2 {[%clk 0:01:57.1]} 21... Qa3 {[%clk 0:01:51.9]} 22. Nd2 {[%clk
0:01:48.8]} 22... Na5 {[%clk 0:01:34.1]} 23. Re3 {[%clk 0:01:42.7]} 23... Qa2
{[%clk 0:01:32.5]} 24. Ra1 {[%clk 0:01:38.6]} 1-0

[Event "Early-Titled-Tuesday-Blitz-October-24-2023"]
[Site "Chess.com"]
[Date "2023.10.24"]
[Round "10"]
[White "GatoRojo150"]
[Black "ilushka"]
[Result "1-0"]
[WhiteElo "2603"]
[BlackElo "2461"]
[TimeControl "180+1"]
[EndTime "9:49:51 PDT"]
[Termination "GatoRojo150 won by checkmate"]

1. e4 {[%clk 0:03:00.9]} 1... e5 {[%clk 0:03:00.4]} 2. Nf3 {[%clk 0:03:00.9]}
2... Nc6 {[%clk 0:03:00.9]} 3. Nc3 {[%clk 0:03:01.1]} 3... Nf6 {[%clk
0:03:01.4]} 4. Bb5 {[%clk 0:03:01.3]} 4... Bb4 {[%clk 0:02:53.1]} 5. O-O {[%clk
0:03:01.1]} 5... d6 {[%clk 0:02:52.1]} 6. Nd5 {[%clk 0:03:00.1]} 6... Bc5 {[%clk
0:02:47.4]} 7. d4 {[%clk 0:03:00.1]} 7... exd4 {[%clk 0:02:44.7]} 8. Bg5 {[%clk
0:03:00.7]} 8... a6 {[%clk 0:02:32.4]} 9. Ba4 {[%clk 0:02:49.6]} 9... b5 {[%clk
0:02:32]} 10. Bxf6 {[%clk 0:02:43.6]} 10... gxf6 {[%clk 0:02:30.1]} 11. Bb3
{[%clk 0:02:43]} 11... Bg4 {[%clk 0:02:10.4]} 12. Qd2 {[%clk 0:02:39.8]} 12...
Bxf3 {[%clk 0:00:49.9]} 13. gxf3 {[%clk 0:02:40.7]} 13... Ne5 {[%clk 0:00:46.7]}
14. Qf4 {[%clk 0:02:37.8]} 14... Rg8+ {[%clk 0:00:33.1]} 15. Kh1 {[%clk
0:02:36.8]} 15... Rg6 {[%clk 0:00:33.5]} 16. Rg1 {[%clk 0:02:34]} 16... c6
{[%clk 0:00:30.5]} 17. Rxg6 {[%clk 0:02:31.7]} 17... hxg6 {[%clk 0:00:21.9]} 18.
Nxf6+ {[%clk 0:02:28]} 18... Kf8 {[%clk 0:00:11.7]} 19. Ng4 {[%clk 0:02:24.3]}
19... Nxg4 {[%clk 0:00:10.3]} 20. Qxf7# {[%clk 0:02:23.8]} 1-0

[Event "Early-Titled-Tuesday-Blitz-October-24-2023"]
[Site "Chess.com"]
[Date "2023.10.24"]
[Round "10"]
[White "Drags95"]
[Black "FairChess_on_YouTube"]
[Result "1/2-1/2"]
[WhiteElo "2873"]
[BlackElo "3091"]
[TimeControl "180+1"]
[EndTime "9:50:18 PDT"]
[Termination "Game drawn by repetition"]

1. d4 {[%clk 0:03:00.9]} 1... Nf6 {[%clk 0:02:59]} 2. c4 {[%clk 0:03:01]} 2...
e6 {[%clk 0:02:58.1]} 3. Nf3 {[%clk 0:02:58.9]} 3... a6 {[%clk 0:02:53.6]} 4.
Nc3 {[%clk 0:02:57.1]} 4... d5 {[%clk 0:02:53.9]} 5. c5 {[%clk 0:02:57.7]} 5...
b6 {[%clk 0:02:49]} 6. cxb6 {[%clk 0:02:58.6]} 6... c5 {[%clk 0:02:49.4]} 7. Bf4
{[%clk 0:02:59]} 7... Bd6 {[%clk 0:02:41.5]} 8. Bxd6 {[%clk 0:02:58.1]} 8...
Qxd6 {[%clk 0:02:42.4]} 9. dxc5 {[%clk 0:02:58.8]} 9... Qxc5 {[%clk 0:02:42.3]}
10. Qd4 {[%clk 0:02:59.6]} 10... Nbd7 {[%clk 0:02:25.7]} 11. Qxc5 {[%clk
0:02:49.4]} 11... Nxc5 {[%clk 0:02:26.6]} 12. Rc1 {[%clk 0:02:49.3]} 12... Ncd7
{[%clk 0:02:19.8]} 13. Na4 {[%clk 0:02:45.7]} 13... Ke7 {[%clk 0:02:11.9]} 14.
Rc7 {[%clk 0:02:19.2]} 14... Ne8 {[%clk 0:02:03.8]} 15. Rc3 {[%clk 0:01:50.8]}
15... Nd6 {[%clk 0:01:59.5]} 16. Nd4 {[%clk 0:01:49.6]} 16... Bb7 {[%clk
0:01:58.2]} 17. e3 {[%clk 0:01:38.1]} 17... Rhc8 {[%clk 0:01:55.5]} 18. Bd3
{[%clk 0:01:23.9]} 18... Rxc3 {[%clk 0:01:49.1]} 19. bxc3 {[%clk 0:01:24.8]}
19... Rc8 {[%clk 0:01:48]} 20. Kd2 {[%clk 0:01:20.3]} 20... Nc4+ {[%clk
0:01:15.5]} 21. Ke2 {[%clk 0:01:20.6]} 21... Na3 {[%clk 0:01:07.4]} 22. Kd2
{[%clk 0:01:18]} 22... Nc4+ {[%clk 0:01:04.8]} 23. Ke2 {[%clk 0:01:18.1]} 23...
Na3 {[%clk 0:01:05.1]} 24. Kd2 {[%clk 0:01:18.4]} 24... Nc4+ {[%clk 0:01:02]}
1/2-1/2

[Event "Early-Titled-Tuesday-Blitz-October-24-2023"]
[Site "Chess.com"]
[Date "2023.10.24"]
[Round "10"]
[White "NMJeevanK"]
[Black "Lennis93"]
[Result "0-1"]
[WhiteElo "2598"]
[BlackElo "2744"]
[TimeControl "180+1"]
[EndTime "9:50:27 PDT"]
[Termination "Lennis93 won by checkmate"]

1. e4 {[%clk 0:03:00.9]} 1... c5 {[%clk 0:02:59.6]} 2. Nc3 {[%clk 0:03:00.8]}
2... Nc6 {[%clk 0:03:00.5]} 3. Bb5 {[%clk 0:03:00.6]} 3... Nd4 {[%clk
0:03:00.5]} 4. Bc4 {[%clk 0:03:01.3]} 4... a6 {[%clk 0:03:00.8]} 5. a4 {[%clk
0:03:01.1]} 5... e6 {[%clk 0:03:01.2]} 6. Nge2 {[%clk 0:03:01.5]} 6... Nf6
{[%clk 0:03:00.1]} 7. O-O {[%clk 0:03:01.9]} 7... d5 {[%clk 0:03:00.3]} 8. exd5
{[%clk 0:03:01.4]} 8... exd5 {[%clk 0:03:01.2]} 9. Ba2 {[%clk 0:03:02.1]} 9...
Nc6 {[%clk 0:02:59.8]} 10. d3 {[%clk 0:02:55.9]} 10... Bd6 {[%clk 0:02:56.4]}
11. Nf4 {[%clk 0:02:43.9]} 11... Nb4 {[%clk 0:02:55.3]} 12. Re1+ {[%clk
0:02:42.7]} 12... Kf8 {[%clk 0:02:55.4]} 13. Bb3 {[%clk 0:02:30.7]} 13... Bg4
{[%clk 0:02:54]} 14. Qd2 {[%clk 0:02:22.2]} 14... h5 {[%clk 0:02:48.3]} 15. h3
{[%clk 0:02:18.6]} 15... Bf5 {[%clk 0:02:47.5]} 16. Ncxd5 {[%clk 0:02:13.1]}
16... Nfxd5 {[%clk 0:02:39.4]} 17. Nxd5 {[%clk 0:02:12]} 17... Nc6 {[%clk
0:02:37.7]} 18. a5 {[%clk 0:02:03]} 18... Nd4 {[%clk 0:02:36.9]} 19. Nb6 {[%clk
0:02:00]} 19... Rb8 {[%clk 0:02:31.4]} 20. Bc4 {[%clk 0:01:56.7]} 20... Bxh3
{[%clk 0:02:30]} 21. c3 {[%clk 0:01:48.3]} 21... Nf3+ {[%clk 0:02:01.1]} 22.
gxf3 {[%clk 0:01:44]} 22... Rh6 {[%clk 0:02:01.7]} 23. Kh1 {[%clk 0:00:44.4]}
23... Rg6 {[%clk 0:01:52.2]} 24. Rg1 {[%clk 0:00:43.6]} 24... Qh4 {[%clk
0:01:52.1]} 25. Rxg6 {[%clk 0:00:38.5]} 25... Bg4+ {[%clk 0:01:50.1]} 26. Kg1
{[%clk 0:00:33]} 26... Qh2+ {[%clk 0:01:49.8]} 27. Kf1 {[%clk 0:00:33]} 27...
Qh1+ {[%clk 0:01:50.4]} 28. Ke2 {[%clk 0:00:31.1]} 28... Qxf3+ {[%clk
0:01:51.3]} 29. Kf1 {[%clk 0:00:27.4]} 29... Qh1# {[%clk 0:01:52.2]} 0-1

[Event "Early-Titled-Tuesday-Blitz-October-24-2023"]
[Site "Chess.com"]
[Date "2023.10.24"]
[Round "10"]
[White "MagnusCarlsen"]
[Black "dropstoneDP"]
[Result "1-0"]
[WhiteElo "3278"]
[BlackElo "3094"]
[TimeControl "180+1"]
[EndTime "9:50:38 PDT"]
[Termination "MagnusCarlsen won by resignation"]

1. h4 {[%clk 0:03:00.9]} 1... e5 {[%clk 0:02:59.3]} 2. c4 {[%clk 0:02:58.2]}
2... Nf6 {[%clk 0:02:59.5]} 3. e3 {[%clk 0:02:56.6]} 3... d5 {[%clk 0:02:59.8]}
4. cxd5 {[%clk 0:02:55.1]} 4... Nxd5 {[%clk 0:03:00.7]} 5. Nf3 {[%clk
0:02:54.5]} 5... Nc6 {[%clk 0:03:01.2]} 6. Nc3 {[%clk 0:02:53.5]} 6... Nxc3
{[%clk 0:02:59.8]} 7. bxc3 {[%clk 0:02:53.2]} 7... e4 {[%clk 0:03:00.4]} 8. Ng5
{[%clk 0:02:52.6]} 8... f5 {[%clk 0:02:48.3]} 9. Qb3 {[%clk 0:02:44.8]} 9... Ne5
{[%clk 0:02:46.5]} 10. f4 {[%clk 0:02:43.1]} 10... exf3 {[%clk 0:02:45.6]} 11.
d4 {[%clk 0:02:35.9]} 11... h6 {[%clk 0:02:46]} 12. Ne6 {[%clk 0:02:34.7]} 12...
Qd6 {[%clk 0:02:38.7]} 13. Nxf8 {[%clk 0:01:47.8]} 13... Nd3+ {[%clk 0:02:30.7]}
14. Bxd3 {[%clk 0:01:28]} 14... Qg3+ {[%clk 0:02:31.1]} 15. Kd1 {[%clk
0:01:24.7]} 15... fxg2 {[%clk 0:02:31.1]} 16. Rg1 {[%clk 0:01:23.9]} 16... Qf2
{[%clk 0:02:22.6]} 17. Qb5+ {[%clk 0:00:59.1]} 17... c6 {[%clk 0:02:02.8]} 18.
Qe5+ {[%clk 0:00:59]} 18... Kxf8 {[%clk 0:02:03.4]} 19. Qh2 {[%clk 0:00:58.5]}
19... Qf3+ {[%clk 0:01:34.2]} 20. Be2 {[%clk 0:00:49.7]} 20... Qe4 {[%clk
0:01:28.9]} 21. Qxg2 {[%clk 0:00:49]} 21... Qxg2 {[%clk 0:01:27.6]} 22. Rxg2
{[%clk 0:00:49.2]} 22... Be6 {[%clk 0:01:27.2]} 23. h5 {[%clk 0:00:47.8]} 23...
Kf7 {[%clk 0:01:27]} 24. Ba3 {[%clk 0:00:47.8]} 24... Bd5 {[%clk 0:01:26]} 25.
Rg3 {[%clk 0:00:46.9]} 25... Rhe8 {[%clk 0:01:25.7]} 26. Bd6 {[%clk 0:00:46.4]}
26... Re4 {[%clk 0:01:24.3]} 27. Bf4 {[%clk 0:00:45.6]} 1-0

[Event "Early-Titled-Tuesday-Blitz-October-24-2023"]
[Site "Chess.com"]
[Date "2023.10.24"]
[Round "10"]
[White "ProfessorChess101"]
[Black "BardArtem"]
[Result "0-1"]
[WhiteElo "2550"]
[BlackElo "2690"]
[TimeControl "180+1"]
[EndTime "9:50:42 PDT"]
[Termination "BardArtem won by resignation"]

1. d4 {[%clk 0:03:00.9]} 1... d5 {[%clk 0:02:59.7]} 2. c4 {[%clk 0:03:00.8]}
2... c6 {[%clk 0:02:59.6]} 3. cxd5 {[%clk 0:03:00.5]} 3... cxd5 {[%clk
0:03:00.5]} 4. Nc3 {[%clk 0:03:01.4]} 4... Nf6 {[%clk 0:02:59.9]} 5. Bf4 {[%clk
0:03:01.9]} 5... Nc6 {[%clk 0:02:59.9]} 6. e3 {[%clk 0:03:02.5]} 6... a6 {[%clk
0:03:00.3]} 7. Be2 {[%clk 0:03:01.6]} 7... Bf5 {[%clk 0:02:59.6]} 8. Nf3 {[%clk
0:03:01]} 8... e6 {[%clk 0:02:59.8]} 9. O-O {[%clk 0:03:01.1]} 9... Be7 {[%clk
0:02:57.8]} 10. Qb3 {[%clk 0:02:59.9]} 10... Na5 {[%clk 0:02:56.6]} 11. Qd1
{[%clk 0:02:50.1]} 11... O-O {[%clk 0:02:55.7]} 12. Ne5 {[%clk 0:02:50]} 12...
Rc8 {[%clk 0:02:54.5]} 13. Rc1 {[%clk 0:02:47.6]} 13... Nd7 {[%clk 0:02:51]} 14.
Bd3 {[%clk 0:02:45.5]} 14... Bxd3 {[%clk 0:02:47.4]} 15. Qxd3 {[%clk 0:02:46.4]}
15... Nxe5 {[%clk 0:02:46.7]} 16. Bxe5 {[%clk 0:02:46.5]} 16... Nc4 {[%clk
0:02:47.4]} 17. Bg3 {[%clk 0:02:30.6]} 17... Nxb2 {[%clk 0:02:41.3]} 18. Qb1
{[%clk 0:02:30.6]} 18... Ba3 {[%clk 0:02:38.9]} 19. Rc2 {[%clk 0:02:26.7]} 19...
b5 {[%clk 0:02:28.6]} 20. Rxb2 {[%clk 0:02:17.5]} 20... Rxc3 {[%clk 0:02:27.2]}
21. Rb3 {[%clk 0:02:13.1]} 21... Qc8 {[%clk 0:02:23.6]} 22. Rxa3 {[%clk
0:02:02]} 22... Rxa3 {[%clk 0:02:23.1]} 23. Bd6 {[%clk 0:02:02.6]} 23... Rc3
{[%clk 0:02:22.7]} 24. Bxf8 {[%clk 0:02:01.9]} 24... Qxf8 {[%clk 0:02:22.6]} 25.
Qb2 {[%clk 0:01:52.2]} 25... Qa3 {[%clk 0:02:21.5]} 26. Qe2 {[%clk 0:01:21.6]}
26... Rc1 {[%clk 0:02:18.8]} 27. g3 {[%clk 0:01:19.2]} 27... Rxf1+ {[%clk
0:02:09.6]} 28. Kxf1 {[%clk 0:01:20.1]} 28... Qc3 {[%clk 0:02:05.2]} 29. Kg2
{[%clk 0:01:18.7]} 29... Qc4 {[%clk 0:02:03.5]} 30. Qb2 {[%clk 0:01:13.7]} 30...
b4 {[%clk 0:02:00.6]} 31. Qb1 {[%clk 0:01:03.2]} 31... a5 {[%clk 0:01:56]} 32.
h4 {[%clk 0:01:02.9]} 32... a4 {[%clk 0:01:55.2]} 33. h5 {[%clk 0:01:03.5]}
33... h6 {[%clk 0:01:45.3]} 34. Qb2 {[%clk 0:00:56.1]} 34... b3 {[%clk 0:01:43]}
35. axb3 {[%clk 0:00:51.2]} 35... axb3 {[%clk 0:01:43.9]} 36. Qa3 {[%clk
0:00:48.1]} 36... Qc2 {[%clk 0:01:43.9]} 37. Qa8+ {[%clk 0:00:47.5]} 37... Kh7
{[%clk 0:01:43.8]} 0-1

[Event "Early-Titled-Tuesday-Blitz-October-24-2023"]
[Site "Chess.com"]
[Date "2023.10.24"]
[Round "10"]
[White "karinachess1"]
[Black "noblerone"]
[Result "1-0"]
[WhiteElo "2640"]
[BlackElo "2513"]
[TimeControl "180+1"]
[EndTime "9:51:01 PDT"]
[Termination "karinachess1 won by resignation"]

1. d4 {[%clk 0:03:00.9]} 1... d5 {[%clk 0:02:57.7]} 2. c4 {[%clk 0:03:01]} 2...
c6 {[%clk 0:02:55.6]} 3. Nf3 {[%clk 0:03:00.5]} 3... Nf6 {[%clk 0:02:55.9]} 4.
g3 {[%clk 0:03:00.8]} 4... g6 {[%clk 0:02:48.9]} 5. b3 {[%clk 0:02:59.1]} 5...
Bg7 {[%clk 0:02:49.1]} 6. Bb2 {[%clk 0:02:59.1]} 6... O-O {[%clk 0:02:49.8]} 7.
Bg2 {[%clk 0:02:59.3]} 7... Bf5 {[%clk 0:02:49.1]} 8. O-O {[%clk 0:02:59]} 8...
Bxb1 {[%clk 0:02:48.8]} 9. Rxb1 {[%clk 0:02:53.7]} 9... e6 {[%clk 0:02:49.3]}
10. Qd3 {[%clk 0:02:47]} 10... Nbd7 {[%clk 0:02:48.1]} 11. Nd2 {[%clk
0:02:41.2]} 11... a5 {[%clk 0:02:36]} 12. a3 {[%clk 0:02:37.3]} 12... Qb6 {[%clk
0:02:34.2]} 13. Bc3 {[%clk 0:02:29.7]} 13... Qa6 {[%clk 0:02:22]} 14. Rfc1
{[%clk 0:02:10.1]} 14... Rfe8 {[%clk 0:02:17.6]} 15. b4 {[%clk 0:01:54.7]} 15...
axb4 {[%clk 0:02:14.6]} 16. axb4 {[%clk 0:01:55.6]} 16... dxc4 {[%clk
0:01:41.5]} 17. Nxc4 {[%clk 0:01:55.6]} 17... Qb5 {[%clk 0:01:22.5]} 18. Bd2
{[%clk 0:01:27.9]} 18... Bf8 {[%clk 0:01:13.7]} 19. Qc2 {[%clk 0:01:20]} 19...
Qa4 {[%clk 0:01:04.8]} 20. Na5 {[%clk 0:01:12.6]} 20... Qxc2 {[%clk 0:01:00.1]}
21. Rxc2 {[%clk 0:01:13.5]} 21... Ra7 {[%clk 0:01:00.7]} 22. b5 {[%clk
0:01:00.8]} 22... cxb5 {[%clk 0:00:48.2]} 23. Rxb5 {[%clk 0:00:54.8]} 23... b6
{[%clk 0:00:48.2]} 24. Nb3 {[%clk 0:00:54.4]} 24... Ra1+ {[%clk 0:00:47.4]} 25.
Nxa1 {[%clk 0:00:54]} 1-0

[Event "Early-Titled-Tuesday-Blitz-October-24-2023"]
[Site "Chess.com"]
[Date "2023.10.24"]
[Round "10"]
[White "Aswathchess"]
[Black "c63_amg"]
[Result "1-0"]
[WhiteElo "2678"]
[BlackElo "2807"]
[TimeControl "180+1"]
[EndTime "9:51:04 PDT"]
[Termination "Aswathchess won on time"]

1. e4 {[%clk 0:03:00.9]} 1... c6 {[%clk 0:02:56.3]} 2. d4 {[%clk 0:03:00.3]}
2... d5 {[%clk 0:02:57.2]} 3. Nc3 {[%clk 0:03:00.7]} 3... g6 {[%clk 0:02:47.7]}
4. Nf3 {[%clk 0:03:00.3]} 4... Bg7 {[%clk 0:02:48]} 5. h3 {[%clk 0:03:00.3]}
5... Nf6 {[%clk 0:02:44.1]} 6. e5 {[%clk 0:03:00.3]} 6... Ne4 {[%clk 0:02:43.1]}
7. Bd3 {[%clk 0:02:57.9]} 7... Bf5 {[%clk 0:02:30.8]} 8. Ne2 {[%clk 0:02:56.5]}
8... O-O {[%clk 0:02:20.7]} 9. O-O {[%clk 0:02:49.1]} 9... f6 {[%clk 0:02:01.3]}
10. c4 {[%clk 0:02:42.9]} 10... fxe5 {[%clk 0:01:47.8]} 11. dxe5 {[%clk
0:02:43.8]} 11... e6 {[%clk 0:01:42.9]} 12. Ned4 {[%clk 0:02:42.1]} 12... Nd7
{[%clk 0:01:38.6]} 13. g4 {[%clk 0:02:27.3]} 13... Nxe5 {[%clk 0:00:42]} 14.
gxf5 {[%clk 0:02:25.9]} 14... Nxf3+ {[%clk 0:00:41.2]} 15. Nxf3 {[%clk
0:02:22.9]} 15... Rxf5 {[%clk 0:00:37.6]} 16. Qe2 {[%clk 0:02:11.2]} 16... Qf6
{[%clk 0:00:29.9]} 17. Bxe4 {[%clk 0:02:09.1]} 17... dxe4 {[%clk 0:00:30.8]} 18.
Nh2 {[%clk 0:02:08.9]} 18... Rf8 {[%clk 0:00:25.3]} 19. Ng4 {[%clk 0:02:08.4]}
19... Qh4 {[%clk 0:00:25.1]} 20. Qxe4 {[%clk 0:01:49]} 20... Qxh3 {[%clk
0:00:14.7]} 21. Qg2 {[%clk 0:01:46.3]} 21... Qh5 {[%clk 0:00:07.8]} 22. Be3
{[%clk 0:01:45.9]} 22... Qh4 {[%clk 0:00:06]} 23. f3 {[%clk 0:01:40.4]} 23... h5
{[%clk 0:00:04.3]} 24. Nh2 {[%clk 0:01:38.8]} 24... Kh7 {[%clk 0:00:03.4]} 25.
Rad1 {[%clk 0:01:36.4]} 1-0